[Event "ESTCC-65 2025"]
[Site "Swidnica"]
[Date "2025.04.07"]
[Round "3.5"]
[White "Rooze, Jan"]
[Black "Quinn, John M"]
[Result "1/2-1/2"]
[Annotator "ChessBase"]
[ECO "B30"]
[WhiteElo "2198"]
[BlackElo "2073"]
[PlyCount "54"]
[EventDate "2025.04.05"]
[EventType "team-tourn"]
[EventCountry "POL"]
[SourceTitle "playchess.com"]
[Source "ChessBase"]
[SourceQuality "1"]
[WhiteTeam "Belgium"]
[BlackTeam "England"]
[WhiteTeamCountry "BEL"]
[BlackTeamCountry "ENG"]
[TimeControl "40/5400+30:1800+30"]

1. e4 {[%emt 0:00:04]} c5 {[%emt 0:00:06]} 2. Nf3 {[%emt 0:00:09]} Nc6 {[%emt 0:00:06]} 3. Bb5 {[%emt 0:00:06]} Nf6 {[%emt 0:00:10]} 4. Nc3 {[%emt 0:00:44]} g6 {[%emt 0:00:15]} 5. h3 {[%emt 0:01:13]} Bg7 {[%emt 0:03:39]} 6. e5 {[%emt 0:02:34]} Ng8 {[%emt 0:00:12]} 7. Bxc6 {[%emt 0:11:08]} dxc6 {[%emt 0:00:07]} 8. d3 {[%emt 0:00:45]} Nh6 {[%emt 0:05:00]} 9. Be3 {[%emt 0:06:20]} b6 {[%emt 0:13:51]} 10. g4 {[%emt 0:02:13]} f6 {[%emt 0:03:07]} 11. exf6 {[%emt 0:04:07]} exf6 {[%emt 0:00:11]} 12. Qd2 {[%emt 0:00:38]} Nf7 {[%emt 0:00:10]} 13. O-O-O {[%emt 0:00:24]} O-O {[%emt 0:00:40]} 14. Rdg1 {[%emt 0:02:14]} f5 {[%emt 0:08:48]} 15. gxf5 {[%emt 0:04:41]} Bxf5 {[%emt 0:00:06]} 16. h4 {[%emt 0:02:18]} c4 {[%emt 0:16:11]} 17. h5 {[%emt 0:04:35]} cxd3 {[%emt 0:01:47]} 18. hxg6 {[%emt 0:00:55]} Bxg6 {[%emt 0:00:19]} 19. Nh4 {[%emt 0:15:10]} dxc2 {[%emt 0:11:48]} 20. f4 {[%emt 0:09:24]} Qxd2+ {[%emt 0:01:24]} 21. Bxd2 {[%emt 0:01:11]} Nd6 {[%emt 0:10:54]} 22. Nxg6 {[%emt 0:01:18]} hxg6 {[%emt 0:00:03]} 23. Rxg6 {[%emt 0:00:12]} Rf6 {[%emt 0:00:37]} 24. Rhg1 {[%emt 0:06:30]} Rxg6 {[%emt 0:02:59]} 25. Rg4 Rg5 26. Rxg5 {[%emt 0:00:37]} Rc8 27. Rg6 Rd8 {[%emt 0:01:56]} 1/2-1/2

[Event "ESTCC-65 2025"]
[Site "Swidnica"]
[Date "2025.04.07"]
[Round "3.6"]
[White "Hewson, Brian W R"]
[Black "Goormachtigh, Johan"]
[Result "1/2-1/2"]
[Annotator "RC"]
[ECO "D91"]
[WhiteElo "2066"]
[BlackElo "2207"]
[PlyCount "37"]
[EventDate "2025.04.05"]
[EventType "team-tourn"]
[EventCountry "POL"]
[SourceTitle "playchess.com"]
[Source "ChessBase"]
[SourceQuality "1"]
[WhiteTeam "England"]
[BlackTeam "Belgium"]
[WhiteTeamCountry "ENG"]
[BlackTeamCountry "BEL"]
[TimeControl "40/5400+30:1800+30"]

1. d4 {[%emt 0:00:08]} Nf6 {[%emt 0:00:17]} 2. c4 {[%emt 0:00:18]} g6 {[%emt 0:00:36]} 3. Nf3 {[%emt 0:00:09]} Bg7 {[%emt 0:00:23]} 4. Nc3 {[%emt 0:02:36]} d5 {[%emt 0:01:01]} 5. Bg5 {[%emt 0:03:24]} Ne4 {[%emt 0:02:42]} 6. Bf4 {[%emt 0:01:20]} Nxc3 {[%emt 0:01:15]} 7. bxc3 {[%emt 0:00:07]} c5 {[%emt 0:03:26]} 8. e3 {[%emt 0:00:58]} O-O {[%emt 0:01:20]} 9. Be2 {[%emt 0:04:12]} dxc4 {[%emt 0:15:50]} 10. Bxc4 {[%emt 0:04:24]} cxd4 {[%emt 0:01:07]} 11. cxd4 {[%emt 0:00:18]} Qa5+ {[%emt 0:02:09]} 12. Qd2 {[%emt 0:00:17]} Nc6 {[%emt 0:00:24]} 13. Qxa5 {[%emt 0:09:25]} Nxa5 {[%emt 0:00:04]} 14. Bd3 {[%emt 0:00:12]} Be6 {[%emt 0:05:32]} 15. Ke2 {[%emt 0:02:59]} Rac8 {[%emt 0:08:15]} 16. Nd2 {[%emt 0:08:37]} Rfd8 {[%emt 0:21:15]} 17. Rhc1 {[%emt 0:03:01]} Rxc1 {[%emt 0:01:30]} 18. Rxc1 {[%emt 0:00:05]} Rc8 {[%emt 0:00:05]} 19. Rxc8+ {[%emt 0:02:26]} 1/2-1/2

[Event "ESTCC-65 2025"]
[Site "Swidnica"]
[Date "2025.04.07"]
[Round "3.7"]
[White "Stuer, Marc"]
[Black "Higgie, Charles L"]
[Result "1/2-1/2"]
[Annotator "NA RC"]
[ECO "A49"]
[WhiteElo "2038"]
[BlackElo "1992"]
[PlyCount "53"]
[EventDate "2025.04.05"]
[EventType "team-tourn"]
[EventCountry "POL"]
[SourceTitle "playchess.com"]
[Source "ChessBase"]
[SourceQuality "1"]
[WhiteTeam "Belgium"]
[BlackTeam "England"]
[WhiteTeamCountry "BEL"]
[BlackTeamCountry "ENG"]
[TimeControl "40/5400+30:1800+30"]

1. d4 {[%emt 0:00:07]} Nf6 {[%emt 0:00:01]} 2. Nf3 {[%emt 0:00:08]} g6 {[%emt 0:00:05]} 3. g3 {[%emt 0:00:04]} Bg7 {[%emt 0:00:05]} 4. Bg2 {[%emt 0:00:05]} O-O {[%emt 0:00:10]} 5. O-O {[%emt 0:00:06]} c5 {[%emt 0:00:11]} 6. dxc5 {[%emt 0:00:33]} Na6 {[%emt 0:01:56]} 7. Be3 {[%emt 0:00:45]} Ng4 {[%emt 0:04:29]} 8. Bd4 {[%emt 0:00:20]} e5 {[%emt 0:01:23]} 9. Bc3 {[%emt 0:00:31]} Qc7 {[%emt 0:13:44]} 10. Qd6 {[%emt 0:28:42]} Qxd6 {[%emt 0:08:43]} 11. cxd6 {[%emt 0:00:09]} f6 {[%emt 0:00:13]} 12. Nbd2 {[%emt 0:09:39]} Rb8 {[%emt 0:02:37]} 13. a4 {[%emt 0:00:43]} b6 {[%emt 0:01:42]} 14. h3 {[%emt 0:04:26]} Nh6 {[%emt 0:00:11]} 15. Nb3 {[%emt 0:02:38]} Nf7 {[%emt 0:02:49]} 16. Rfd1 {[%emt 0:00:46]} Re8 {[%emt 0:00:38]} 17. Ne1 {[%emt 0:09:21]} Bb7 {[%emt 0:03:21]} 18. Bd5 {[%emt 0:02:08]} Bxd5 {[%emt 0:01:55]} 19. Rxd5 {[%emt 0:00:08]} Re6 {[%emt 0:00:21]} 20. Rad1 {[%emt 0:00:22]} Bf8 {[%emt 0:01:36]} 21. f4 {[%emt 0:06:08]} Bxd6 {[%emt 0:13:10]} 22. fxe5 {[%emt 0:01:46]} fxe5 {[%emt 0:00:18]} 23. Nf3 {[%emt 0:04:38]} Rbe8 {[%emt 0:10:48]} 24. e4 {[%emt 0:09:13]} Bc5+ {[%emt 0:07:06]} 25. Kg2 {[%emt 0:00:55]} d6 {[%emt 0:00:40]} 26. a5 {[%emt 0:03:14]} R6e7 {[%emt 0:07:37]} 27. axb6 {[%emt 0:02:42]} 1/2-1/2

[Event "ESTCC-65 2025"]
[Site "Swidnica"]
[Date "2025.04.07"]
[Round "3.8"]
[White "Reynolds, D Ian W"]
[Black "Van Herck, Marcel"]
[Result "0-1"]
[Annotator "NA RC"]
[ECO "B11"]
[WhiteElo "1926"]
[BlackElo "1962"]
[PlyCount "87"]
[EventDate "2025.04.05"]
[EventType "team-tourn"]
[EventCountry "POL"]
[SourceTitle "playchess.com"]
[Source "ChessBase"]
[SourceQuality "1"]
[WhiteTeam "England"]
[BlackTeam "Belgium"]
[WhiteTeamCountry "ENG"]
[BlackTeamCountry "BEL"]
[TimeControl "40/5400+30:1800+30"]

1. e4 {[%emt 0:00:03]} c6 {[%emt 0:00:27]} 2. Nc3 {[%emt 0:00:09]} d5 {[%emt 0:00:06]} 3. Nf3 {[%emt 0:00:06]} Bg4 {[%emt 0:00:28]} 4. h3 {[%emt 0:00:10]} Bxf3 {[%emt 0:00:13]} 5. Qxf3 {[%emt 0:00:07]} e6 {[%emt 0:00:10]} 6. d4 {[%emt 0:00:18]} dxe4 {[%emt 0:06:07]} 7. Qxe4 {[%emt 0:00:09]} Nf6 {[%emt 0:00:15]} 8. Qh4 {[%emt 0:02:01]} Be7 {[%emt 0:06:23]} 9. Bd3 {[%emt 0:04:56]} Nd5 {[%emt 0:10:36]} 10. Qg3 {[%emt 0:11:49]} Nxc3 {[%emt 0:00:12]} 11. bxc3 {[%emt 0:00:09]} O-O {[%emt 0:00:19]} 12. O-O {[%emt 0:01:13]} Nd7 {[%emt 0:03:59]} 13. Rb1 {[%emt 0:03:13]} Qc8 {[%emt 0:04:14]} 14. Bh6 {[%emt 0:04:21]} Bf6 {[%emt 0:00:09]} 15. Bg5 {[%emt 0:00:12]} Bxg5 {[%emt 0:03:53]} 16. Qxg5 {[%emt 0:00:11]} Nf6 {[%emt 0:01:09]} 17. Qh4 {[%emt 0:07:22]} Rd8 {[%emt 0:02:27]} 18. f4 {[%emt 0:06:58]} h6 {[%emt 0:00:22]} 19. f5 {[%emt 0:02:21]} exf5 {[%emt 0:00:31]} 20. Rxf5 {[%emt 0:07:35]} Rd6 {[%emt 0:00:55]} 21. Rbf1 {[%emt 0:01:28]} Qd8 {[%emt 0:03:33]} 22. g4 {[%emt 0:02:28]} Rc8 {[%emt 0:03:29]} 23. Qg3 {[%emt 0:13:29]} Rc7 {[%emt 0:02:36]} 24. Kh1 {[%emt 0:04:32]} Nh7 {[%emt 0:08:05]} 25. Qf2 {[%emt 0:03:56]} Rf6 {[%emt 0:02:04]} 26. Rxf6 {[%emt 0:01:58]} Nxf6 {[%emt 0:00:12]} 27. c4 {[%emt 0:03:44]} Re7 {[%emt 0:02:38]} 28. c3 {[%emt 0:01:59]} Qe8 {[%emt 0:00:49]} 29. Rd1 {[%emt 0:02:46]} Re3 {[%emt 0:07:23]} 30. Kg2 {[%emt 0:02:25]} Qe7 {[%emt 0:02:41]} 31. Rd2 {[%emt 0:00:30]} g6 {[%emt 0:03:04]} 32. Re2 {[%emt 0:00:27]} Rxe2 {[%emt 0:00:05]} 33. Qxe2 {[%emt 0:00:13]} Qxe2+ {[%emt 0:00:15]} 34. Bxe2 {[%emt 0:00:29]} Ne4 {[%emt 0:00:01]} 35. d5 {[%emt 0:01:04]} cxd5 {[%emt 0:00:27]} 36. cxd5 {[%emt 0:00:06]} Nxc3 {[%emt 0:00:06]} 37. Bc4 {[%emt 0:00:21]} Ne4 {[%emt 0:01:57]} 38. Kf3 {[%emt 0:00:44]} Nd6 {[%emt 0:00:05]} 39. Bb3 {[%emt 0:00:21]} Kg7 {[%emt 0:06:27]} 40. Ke3 {[%emt 0:00:00]} Kf6 {[%emt 0:00:00]} 41. Kd4 {[%emt 0:06:18]} b6 {[%emt 0:03:52]} 42. Bc2 {[%emt 0:04:25]} Nb5+ {[%emt 0:03:13]} 43. Kc4 {[%emt 0:00:11]} Na3+ {[%emt 0:00:07]} 44. Kd4 0-1

[Event "ESTCC-65 2025"]
[Site "Swidnica"]
[Date "2025.04.07"]
[Round "3.9"]
[White "Janocha, Wieslaw"]
[Black "Vadlja, Stjepan"]
[Result "1-0"]
[Annotator "ChessBase"]
[ECO "C62"]
[WhiteElo "2186"]
[BlackElo "1697"]
[PlyCount "59"]
[EventDate "2025.04.05"]
[EventType "team-tourn"]
[EventCountry "POL"]
[SourceTitle "playchess.com"]
[Source "ChessBase"]
[SourceQuality "1"]
[WhiteTeam "Poland"]
[BlackTeam "Croatia"]
[WhiteTeamCountry "POL"]
[BlackTeamCountry "CRO"]
[TimeControl "40/5400+30:1800+30"]

1. e4 {[%emt 0:00:09]} e5 {[%emt 0:00:15]} 2. Nf3 {[%emt 0:00:12]} Nc6 {[%emt 0:00:59]} 3. Bb5 {[%emt 0:01:26]} d6 {[%emt 0:00:24]} 4. d4 {[%emt 0:02:48]} Bd7 {[%emt 0:02:38]} 5. Nc3 {[%emt 0:04:08]} a6 {[%emt 0:00:44]} 6. Bxc6 {[%emt 0:00:33]} bxc6 {[%emt 0:03:17]} 7. dxe5 {[%emt 0:00:11]} dxe5 {[%emt 0:01:04]} 8. Nxe5 {[%emt 0:00:28]} Bd6 {[%emt 0:00:24]} 9. Nxd7 {[%emt 0:03:12]} Qxd7 {[%emt 0:00:33]} 10. O-O {[%emt 0:01:20]} Ne7 {[%emt 0:01:49]} 11. Be3 {[%emt 0:01:36]} Bb4 {[%emt 0:04:46]} 12. Qxd7+ {[%emt 0:01:08]} Kxd7 {[%emt 0:00:16]} 13. Na4 {[%emt 0:00:03]} Rhd8 {[%emt 0:08:21]} 14. Rad1+ {[%emt 0:00:00]} Ke8 {[%emt 0:00:17]} 15. f4 {[%emt 0:03:00]} f6 {[%emt 0:00:23]} 16. Kf2 {[%emt 0:02:54]} Rxd1 {[%emt 0:00:24]} 17. Rxd1 {[%emt 0:00:07]} Rd8 {[%emt 0:00:14]} 18. Rxd8+ {[%emt 0:00:08]} Kxd8 {[%emt 0:00:34]} 19. Bc5 {[%emt 0:00:46]} a5 {[%emt 0:10:05]} 20. c3 {[%emt 0:04:09]} Bxc5+ {[%emt 0:00:45]} 21. Nxc5 {[%emt 0:00:04]} Kc8 {[%emt 0:02:17]} 22. f5 {[%emt 0:00:16]} g6 {[%emt 0:01:11]} 23. g4 {[%emt 0:00:13]} g5 {[%emt 0:00:28]} 24. a4 {[%emt 0:00:33]} h6 {[%emt 0:01:18]} 25. Ke3 {[%emt 0:00:11]} Ng8 {[%emt 0:00:52]} 26. Kd4 {[%emt 0:00:06]} Kd8 {[%emt 0:03:19]} 27. Nb7+ {[%emt 0:00:14]} Ke7 {[%emt 0:00:09]} 28. Kc5 {[%emt 0:00:07]} Kd7 {[%emt 0:00:24]} 29. Nxa5 {[%emt 0:00:14]} Ne7 {[%emt 0:00:19]} 30. b4 {[%emt 0:00:10]} 1-0

[Event "ESTCC-65 2025"]
[Site "Swidnica"]
[Date "2025.04.07"]
[Round "3.10"]
[White "Sobocanec, Alojz"]
[Black "Zyla, Janusz"]
[Result "0-1"]
[Annotator "ChessBase"]
[ECO "E61"]
[WhiteElo "1792"]
[BlackElo "2181"]
[PlyCount "50"]
[EventDate "2025.04.05"]
[EventType "team-tourn"]
[EventCountry "POL"]
[SourceTitle "playchess.com"]
[Source "ChessBase"]
[SourceQuality "1"]
[WhiteTeam "Croatia"]
[BlackTeam "Poland"]
[WhiteTeamCountry "CRO"]
[BlackTeamCountry "POL"]
[TimeControl "40/5400+30:1800+30"]

1. d4 {[%emt 0:15:03]} Nf6 {[%emt 0:00:18]} 2. c4 {[%emt 0:00:02]} g6 {[%emt 0:00:15]} 3. Nc3 {[%emt 0:00:08]} Bg7 {[%emt 0:00:13]} 4. Nf3 {[%emt 0:00:06]} O-O {[%emt 0:00:25]} 5. h3 {[%emt 0:00:11]} d6 {[%emt 0:00:15]} 6. e4 {[%emt 0:00:26]} e5 {[%emt 0:00:34]} 7. d5 {[%emt 0:00:07]} Na6 {[%emt 0:00:48]} 8. Be3 {[%emt 0:00:21]} Nh5 {[%emt 0:04:40]} 9. Qd2 {[%emt 0:00:34]} f5 {[%emt 0:02:26]} 10. Bh6 {[%emt 0:02:53]} Qe8 {[%emt 0:14:50]} 11. Bd3 {[%emt 0:03:28]} Nf4 {[%emt 0:09:06]} 12. Bxf4 exf4 {[%emt 0:06:29]} 13. O-O-O {[%emt 0:10:11]} Nc5 14. Rhe1 {[%emt 0:01:29]} Qd8 {[%emt 0:21:51]} 15. exf5 {[%emt 0:00:36]} Nxd3+ {[%emt 0:00:18]} 16. Qxd3 {[%emt 0:00:08]} Bxf5 {[%emt 0:00:04]} 17. Qd2 {[%emt 0:00:26]} c5 {[%emt 0:01:14]} 18. dxc6 {[%emt 0:01:42]} bxc6 {[%emt 0:00:15]} 19. Qxd6 {[%emt 0:00:56]} Qb6 {[%emt 0:02:16]} 20. c5 {[%emt 0:01:29]} Qb4 {[%emt 0:04:32]} 21. Ne5 {[%emt 0:01:33]} Rab8 {[%emt 0:00:22]} 22. Qd2 {[%emt 0:02:20]} Qxc5 {[%emt 0:02:29]} 23. Nd7 Bxd7 {[%emt 0:00:25]} 24. Qxd7 {[%emt 0:00:37]} Bxc3 {[%emt 0:00:07]} 25. Qe6+ {[%emt 0:01:23]} Kh8 {[%emt 0:00:15]} 0-1

[Event "ESTCC-65 2025"]
[Site "Swidnica"]
[Date "2025.04.07"]
[Round "3.11"]
[White "Czajkowski, Ryszard"]
[Black "Novak, Stjepan"]
[Result "1-0"]
[Annotator "NA RC"]
[ECO "A40"]
[WhiteElo "1963"]
[BlackElo "1671"]
[PlyCount "104"]
[EventDate "2025.04.05"]
[EventType "team-tourn"]
[EventCountry "POL"]
[SourceTitle "playchess.com"]
[Source "ChessBase"]
[SourceQuality "1"]
[WhiteTeam "Poland"]
[BlackTeam "Croatia"]
[WhiteTeamCountry "POL"]
[BlackTeamCountry "CRO"]
[TimeControl "40/5400+30:1800+30"]

1. d4 {[%emt 0:00:08]} b5 {[%emt 0:00:22]} 2. e4 {[%emt 0:02:06]} c6 {[%emt 0:00:19]} 3. Nf3 {[%emt 0:01:50]} a5 {[%emt 0:00:40]} 4. Bd3 {[%emt 0:01:35]} Ba6 {[%emt 0:00:17]} 5. O-O {[%emt 0:03:29]} b4 {[%emt 0:01:35]} 6. c4 {[%emt 0:02:34]} bxc3 {[%emt 0:00:24]} 7. Nxc3 {[%emt 0:00:34]} Bxd3 {[%emt 0:00:24]} 8. Qxd3 {[%emt 0:00:03]} h6 {[%emt 0:00:54]} 9. e5 {[%emt 0:06:51]} Na6 {[%emt 0:00:51]} 10. d5 {[%emt 0:14:59]} Nb4 {[%emt 0:04:52]} 11. Qe4 {[%emt 0:00:40]} Nxd5 {[%emt 0:01:04]} 12. Nxd5 {[%emt 0:00:58]} cxd5 {[%emt 0:00:02]} 13. Qxd5 {[%emt 0:00:21]} e6 {[%emt 0:00:09]} 14. Qe4 {[%emt 0:04:00]} Ne7 {[%emt 0:00:38]} 15. Nd4 {[%emt 0:03:35]} Ra6 {[%emt 0:06:52]} 16. Bd2 {[%emt 0:06:10]} Nd5 {[%emt 0:03:47]} 17. Rac1 {[%emt 0:01:47]} Be7 {[%emt 0:00:50]} 18. Qg4 {[%emt 0:02:55]} Kf8 {[%emt 0:04:26]} 19. Rc4 {[%emt 0:03:52]} Nb6 {[%emt 0:01:49]} 20. Rc2 {[%emt 0:03:08]} Bb4 {[%emt 0:05:27]} 21. Bc1 {[%emt 0:05:11]} Kg8 {[%emt 0:05:55]} 22. a3 {[%emt 0:01:51]} Bf8 {[%emt 0:01:50]} 23. Bd2 {[%emt 0:00:35]} Ra8 {[%emt 0:00:52]} 24. Rfc1 Rc8 {[%emt 0:01:21]} 25. Bxa5 {[%emt 0:02:00]} Rxc2 {[%emt 0:00:12]} 26. Rxc2 {[%emt 0:00:57]} Qb8 {[%emt 0:02:37]} 27. Qe4 {[%emt 0:04:05]} Nd5 {[%emt 0:01:19]} 28. g3 {[%emt 0:00:32]} g6 {[%emt 0:02:23]} 29. f4 {[%emt 0:03:18]} Bg7 {[%emt 0:03:12]} 30. Be1 {[%emt 0:00:31]} Kh7 {[%emt 0:00:57]} 31. Bf2 {[%emt 0:00:24]} Rc8 {[%emt 0:00:19]} 32. b4 {[%emt 0:01:16]} Rxc2 {[%emt 0:08:16]} 33. Qxc2 {[%emt 0:00:18]} Nxb4 {[%emt 0:02:41]} 34. axb4 {[%emt 0:01:05]} Qxb4 {[%emt 0:00:02]} 35. Qb3 {[%emt 0:02:11]} Bf8 {[%emt 0:02:10]} 36. Qxb4 {[%emt 0:01:50]} Bxb4 {[%emt 0:00:02]} 37. Kf1 {[%emt 0:01:31]} d6 {[%emt 0:00:10]} 38. Nc2 {[%emt 0:00:12]} Bc5 {[%emt 0:00:10]} 39. Bxc5 {[%emt 0:00:14]} dxc5 {[%emt 0:00:17]} 40. Ke2 {[%emt 0:00:00]} g5 {[%emt 0:00:00]} 41. Kf3 {[%emt 0:07:31]} Kg6 {[%emt 0:00:46]} 42. Ke4 {[%emt 0:00:17]} f5+ {[%emt 0:00:56]} 43. exf6 {[%emt 0:02:37]} gxf4 {[%emt 0:01:07]} 44. gxf4 {[%emt 0:00:30]} Kxf6 {[%emt 0:00:20]} 45. Ne3 {[%emt 0:00:18]} h5 {[%emt 0:00:13]} 46. h4 {[%emt 0:00:43]} Ke7 {[%emt 0:00:27]} 47. Ke5 {[%emt 0:00:13]} Kd7 {[%emt 0:00:28]} 48. Kf6 {[%emt 0:04:38]} Kd6 {[%emt 0:00:09]} 49. Kg5 {[%emt 0:00:12]} c4 {[%emt 0:01:28]} 50. Nxc4+ {[%emt 0:00:08]} Kd5 {[%emt 0:00:01]} 51. Ne5 {[%emt 0:00:52]} Ke4 {[%emt 0:00:27]} 52. Ng6 {[%emt 0:00:18]} Kf3 1-0

[Event "ESTCC-65 2025"]
[Site "Swidnica"]
[Date "2025.04.07"]
[Round "3.12"]
[White "Petanjek, Zvonko"]
[Black "Krupa, Krzysztof"]
[Result "0-1"]
[Annotator "NA RC"]
[ECO "C48"]
[WhiteElo "1732"]
[BlackElo "1919"]
[PlyCount "88"]
[EventDate "2025.04.05"]
[EventType "team-tourn"]
[EventCountry "POL"]
[SourceTitle "playchess.com"]
[Source "ChessBase"]
[SourceQuality "1"]
[WhiteTeam "Croatia"]
[BlackTeam "Poland"]
[WhiteTeamCountry "CRO"]
[BlackTeamCountry "POL"]
[TimeControl "40/5400+30:1800+30"]

1. e4 {[%emt 0:00:05]} e5 {[%emt 0:00:15]} 2. Nf3 {[%emt 0:00:13]} Nc6 {[%emt 0:00:04]} 3. Nc3 {[%emt 0:00:36]} Nf6 {[%emt 0:00:10]} 4. Bb5 {[%emt 0:00:42]} Bc5 {[%emt 0:00:07]} 5. h3 {[%emt 0:00:18]} d6 {[%emt 0:01:59]} 6. d3 {[%emt 0:00:41]} h6 {[%emt 0:05:21]} 7. O-O {[%emt 0:00:07]} a6 {[%emt 0:02:13]} 8. Bxc6+ {[%emt 0:00:09]} bxc6 {[%emt 0:00:04]} 9. a3 {[%emt 0:00:07]} g5 {[%emt 0:02:17]} 10. Nh2 {[%emt 0:00:37]} Rg8 {[%emt 0:10:06]} 11. Be3 {[%emt 0:00:11]} Bd4 {[%emt 0:06:53]} 12. Bxd4 {[%emt 0:00:15]} exd4 {[%emt 0:00:03]} 13. Ne2 {[%emt 0:00:06]} g4 {[%emt 0:14:09]} 14. h4 {[%emt 0:00:20]} c5 {[%emt 0:07:59]} 15. g3 {[%emt 0:00:18]} Nd7 {[%emt 0:01:45]} 16. Qd2 {[%emt 0:02:13]} Qf6 {[%emt 0:08:47]} 17. Qf4 {[%emt 0:00:30]} Qxf4 {[%emt 0:02:48]} 18. Nxf4 {[%emt 0:00:04]} Rb8 {[%emt 0:00:16]} 19. b3 {[%emt 0:00:07]} Ne5 {[%emt 0:01:55]} 20. Nd5 {[%emt 0:00:27]} Kd8 {[%emt 0:00:10]} 21. Kg2 {[%emt 0:02:34]} c6 {[%emt 0:06:37]} 22. Nf4 {[%emt 0:00:36]} f5 {[%emt 0:00:30]} 23. exf5 {[%emt 0:01:39]} Bxf5 {[%emt 0:00:25]} 24. Rfe1 {[%emt 0:01:56]} Kd7 {[%emt 0:05:30]} 25. Nh5 {[%emt 0:00:20]} Rbf8 {[%emt 0:00:23]} 26. Nf4 {[%emt 0:00:12]} Rg7 {[%emt 0:01:13]} 27. a4 {[%emt 0:00:19]} Re7 {[%emt 0:02:52]} 28. Kf1 {[%emt 0:00:44]} Rfe8 {[%emt 0:02:26]} 29. Rac1 {[%emt 0:01:10]} d5 {[%emt 0:01:05]} 30. Rb1 {[%emt 0:01:07]} Kd6 {[%emt 0:01:36]} 31. Rbc1 {[%emt 0:02:15]} c4 {[%emt 0:02:45]} 32. bxc4 {[%emt 0:01:20]} dxc4 {[%emt 0:00:03]} 33. dxc4 {[%emt 0:00:49]} Kc5 {[%emt 0:02:55]} 34. Nd3+ {[%emt 0:03:19]} Nxd3 {[%emt 0:03:52]} 35. Rxe7 {[%emt 0:00:08]} Rxe7 {[%emt 0:00:05]} 36. cxd3 {[%emt 0:00:11]} Bxd3+ {[%emt 0:00:14]} 37. Kg1 {[%emt 0:00:10]} Be2 {[%emt 0:01:27]} 38. f3 {[%emt 0:01:24]} gxf3 {[%emt 0:02:36]} 39. Kf2 {[%emt 0:00:08]} d3 {[%emt 0:02:17]} 40. Nf1 {[%emt 0:00:00]} Bxf1 {[%emt 0:00:00]} 41. Rxf1 Kd4 42. Kxf3 {[%emt 0:03:33]} Rf7+ {[%emt 0:01:21]} 43. Kg2 {[%emt 0:00:07]} Rxf1 {[%emt 0:00:12]} 44. Kxf1 {[%emt 0:00:06]} Kc3 {[%emt 0:00:02]} 0-1

[Event "ESTCC-65 2025"]
[Site "Swidnica"]
[Date "2025.04.07"]
[Round "3.13"]
[White "Beilfuss, Wilfried"]
[Black "Nunn, John D M"]
[Result "1/2-1/2"]
[Annotator "TA"]
[ECO "A49"]
[WhiteElo "2070"]
[BlackElo "2528"]
[PlyCount "64"]
[EventDate "2025.04.05"]
[EventType "team-tourn"]
[EventCountry "POL"]
[SourceTitle "playchess.com"]
[Source "ChessBase"]
[SourceQuality "1"]
[WhiteTeam "Germany"]
[BlackTeam "England"]
[WhiteTeamCountry "GER"]
[BlackTeamCountry "ENG"]
[TimeControl "40/5400+30:1800+30"]

{[%evp 16,64,37,33,41,35,36,40,46,48,46,28,50,39,33,22,36,17,16,19,37,22,67,31,49,0,93,81,78,95,80,97,120,51,116,121,130,114,130,131,129,129,161,68,76,69,127,0,87,0,113]} 1. d4 {[%emt 0:00:06]} Nf6 {[%emt 0:00:10]} 2. Nf3 {[%emt 0:00:10]} g6 {[%emt 0:00:07]} 3. g3 {[%emt 0:00:11]} Bg7 {[%emt 0:00:09]} 4. Bg2 {[%emt 0:00:11]} O-O {[%emt 0:00:15]} 5. O-O {[%emt 0:00:12]} d6 {[%emt 0:01:43]} 6. c4 {[%emt 0:00:19]} Nc6 {[%emt 0:00:44]} 7. Nc3 {[%emt 0:00:18]} Rb8 {[%emt 0:00:07]} 8. b3 {[%emt 0:00:29] 8.d5 is setting a new trend.} a6 {[%emt 0:00:08]} 9. d5 {[%emt 0:00:44]} Na5 {[%emt 0:00:38] E63: King's Indian: Fianchetto: Panno Variation with 7...a6.} (9... Nxd5 10. cxd5 Bxc3 11. Bh6) 10. Bg5 {[%emt 0:00:37]} c5 {[%emt 0:03:30]} 11. dxc6 $1 {[%emt 0:00:40]} Nxc6 {[%emt 0:00:30] White is slightly better.} 12. Rc1 {[%emt 0:01:01]} h6 {[%emt 0:01:47]} 13. Bf4 {[%emt 0:02:35]} Bf5 {[%emt 0:04:54]} 14. Nd5 $146 {[%emt 0:05:33]} (14. Qd2 g5 15. Be3 Ng4 16. Rfd1 Nxe3 17. Qxe3 Qc8 18. h4 g4 19. Ne1 Qe6 20. Qd2 {1-0 Brejnik,G (2261)-Freisler,P (2242) CZE-chT2B 2122 2021 (5.1)}) 14... e5 {[%emt 0:15:14]} 15. Be3 {[%emt 0:04:30]} Nxd5 {[%emt 0:00:32]} 16. cxd5 {[%emt 0:01:04]} Ne7 {[%emt 0:00:24]} 17. Qd2 {[%emt 0:04:21]} Kh7 {[%emt 0:04:52]} 18. Rfd1 {[%emt 0:01:45]} Qd7 {[%emt 0:09:13]} 19. Qa5 {[%emt 0:09:39] White is more active.} Rfc8 {[%emt 0:01:51] Dodges Rc7} 20. Nd2 {[%emt 0:00:48]} (20. Bb6 $14 {is superior.}) 20... Bh3 {[%emt 0:18:17]} (20... Bc2 $11) 21. Bxh3 $16 {[%emt 0:15:04] Successful Defense White} Qxh3 {[%emt 0:00:13]} 22. Nc4 {[%emt 0:02:58]} Nf5 {[%emt 0:01:28]} 23. Bb6 {[%emt 0:01:01]} Qg4 {[%emt 0:06:12]} 24. Qd2 {[%emt 0:07:19]} (24. f3 $16 Qg5 25. Qe1) 24... Bf6 {[%emt 0:07:27]} (24... e4 $14) 25. f3 {[%emt 0:05:14]} Qh3 {[%emt 0:00:36][%cal Of5g3]} 26. e3 {[%emt 0:00:42]} Bd8 {[%emt 0:03:09] [#]} 27. Bxd8 $1 {[%emt 0:05:14]} Rxd8 {[%emt 0:00:05] [#]} 28. Nb6 $1 {[%emt 0:00:18] Dodges Rd7} Qh5 {[%emt 0:06:18]} 29. Kg2 {[%emt 0:06:29]} (29. Rc7 $18) 29... Qg5 $14 {[%emt 0:01:18]} 30. Kf2 {[%emt 0:09:30]} Qh5 {[%emt 0:00:20]} (30... Re8 $14) 31. Kg2 {[%emt 0:01:32]} Qg5 {[%emt 0:01:18]} 32. Kf2 {[%emt 0:00:10]} Qh5 $1 {Weighted Error Value: White=0.21 (precise) /Black=0.24 (precise)   Mistake:       	White=3     	Black=3      Inaccurate:     	White=2     	Black=1      OK:         	White=10    	Black=6      Best:        	---       	Black=1      Strong:       	White=3     	Black=1} 1/2-1/2